Cogmind - Beta 17.1 @@@ ROGUE MODE // 2026.09.12 @ 20:45:25 Player: Xon Result: Destroyed by D-53 Grenadier with Mini Grenade Launcher Performance ------------- Evolutions (1) 500 Regions Visited (3) 600 Robots Destroyed (10) 50 Value Destroyed (209) 209 Prototype IDs (0) 0 Alien Tech Used (0) 0 Bonus (0) 0 TOTAL SCORE: 1359 Bonus ------- None Cogmind --------- Core Integrity 0/400 Matter 273/300 Energy 69/100 System Corruption 0% Temperature Cool (0) Movement Core (50) Location -9/Mines Parts ------- > --- POWER (1) -------- (None) > --- PROPULSION (4) --- (None) > --- UTILITY (2) ------ (None) > --- WEAPON (2) ------- (None) > --- INVENTORY (5) ---- Wheel Large Storage Unit Peak State ------------ > --- POWER ------------ Ion Engine > --- PROPULSION ------- VTOL Module VTOL Module VTOL Module VTOL Module > --- UTILITY ---------- Large Storage Unit Terrain Scanner > --- WEAPON ----------- Assault Rifle Assault Rifle > --- INVENTORY -------- Wheel Wheel Wheel Light Armor Plating [Rating: 13] Favorites ----------- Power Ion Engine Engine Ion Engine Propulsion Wheel Treads Light Treads Leg Improved Aluminum Leg Wheel Wheel Flight Unit VTOL Module Utility Terrain Scanner Device Terrain Scanner Storage Large Storage Unit Protection Light Armor Plating Weapon Assault Rifle Energy Gun Beam Rifle Energy Cannon Light EM Pulse Cannon Ballistic Gun Assault Rifle Special Weapon Mining Laser Build | -11 -10 -9 -9 ------- Run | Yrd Mat Mat Min Slots Evolved 2 | . . 2 . Power . | . . . . Propulsion 2 | . . 2 . Utility . | . . . . Weapon . | . . . . Parts Attached 22 | 7 4 5 6 Power 2 | 1 . . 1 Engine 2 | 1 . . 1 Core . | . . . . Reactor . | . . . . Propulsion 10 | 3 1 4 2 Treads 1 | 1 . . . Leg 1 | . . . 1 Wheel 4 | 2 1 . 1 Hover . | . . . . Flight 4 | . . 4 . Utility 5 | 1 3 1 . Device 1 | . 1 . . Storage 2 | 1 1 . . Processor . | . . . . Hackware . | . . . . Protection 2 | . 1 1 . Artifact . | . . . . Weapon 5 | 2 . . 3 Energy Gun 1 | . . . 1 Energy Cannon 1 | . . . 1 Ballistic Gun 2 | 2 . . . Ballistic Cannon . | . . . . Launcher . | . . . . Special Weapon 1 | . . . 1 Impact Weapon . | . . . . Slashing Weapon . | . . . . Piercing Weapon . | . . . . Special Melee Weapon . | . . . . Unidentified Prototypes . | . . . . Parts Lost 14 | . . 2 12 Power 2 | . . . 2 Propulsion 5 | . . 2 3 Utility 3 | . . . 3 Weapon 4 | . . . 4 Highest Loss Streak 7 | . . 2 7 To Critical Strikes . | . . . . Average Backups 2 | . 1 2 3 Power . | . . . . Propulsion . | . . . . Utility 1 | . . 1 1 Weapon . | . . . 1 Tool/Special . | . . . . Unused Backups 2 | 1 . . 1 Power . | . . . . Propulsion 2 | 1 . . 1 Utility . | . . . . Weapon . | . . . . Tool/Special . | . . . . Average Slot Usage (%) 78 | . 98 83 59 Engine 10 | . 14 11 6 Wheel 21 | . 28 26 11 Device 9 | . 6 10 10 Storage 5 | . 8 9 . Protection 6 | . 11 1 6 Energy Gun 2 | . . . 5 Energy Cannon 2 | . . . 6 Ballistic Gun 19 | . 28 22 9 Peak Build Rating 13 | 6 7 13 11 Average Rating 6 | 3 6 7 6 On Entrance 4 | . 6 7 6 Avg Prop Armor Cover (%) 6 | . . . 6 Naked Turns 4 | . . . 4 Heaviest Build 30 | 14 30 30 16 Greatest Support 30 | 20 20 30 20 Greatest Overweight (x) 2 | . 1 2 1 Average Overweight (x) . | . . . . Largest Inventory Capacity 15 | 8 15 15 5 Average Capacity 8 | 6 7 13 5 Most Carried 5 | 4 3 5 5 Average Carried 2 | . 1 2 3 Final Capacity 15 | 8 15 5 5 Final Carried 4 | . 2 4 2 Class Distribution -------------------- 100% | Mutant Dominant Class ---------------- Mutant | -10/Materials Mutant | -9/Materials Mutant | -9/Mines Resources | -11 -10 -9 -9 ----------- Run | Yrd Mat Mat Min Matter Collected 691 | 202 104 103 282 Remotely . | . . . . Salvage Created 326 | . 104 117 105 Parts 21 | . 8 10 3 Haulers Intercepted . | . . . . Recyclers Shooed . | . . . . Parts Field Recycled . | . . . . Retrieved Matter . | . . . . Parts Self-Destructed . | . . . . Prevented . | . . . . Parts Restored . | . . . . Kills | -11 -10 -9 -9 ------- Run | Yrd Mat Mat Min Combat Hostiles Destroyed 10 | . 2 2 6 Guns 8 | . 2 2 4 Cannons 2 | . . . 2 Classes Destroyed 7 | . 3 2 2 Worker 1 | . 1 . . Builder 1 | . 1 . . Watcher 1 | . . 1 . Swarmer 3 | . . . 3 Grunt 3 | . 2 1 . Sentry 1 | . . 1 . Assembled 3 | . . . 3 Best Kill Streak 3 | . 3 2 3 Combat Bots Only 3 | . 1 1 3 Max Kills in Single Turn 1 | . 1 1 1 Gunslinging . | . . . . Exploded . | . . . . Melee . | . . . . Uniques/NPCs Destroyed . | . . . . Combat | -11 -10 -9 -9 -------- Run | Yrd Mat Mat Min Hostile Shots Fired 92 | . 16 11 65 Missed 25 | . 3 4 18 Hits 67 | . 13 7 47 Melee 13 | . . . 13 Projectile 54 | . 13 7 34 AOE 8 | . . . 8 Critical Strikes 1 | . . . 1 Damage Taken 1232 | . 143 147 942 Core 435 | . 31 55 349 Absorbed by Shields . | . . . . Core Remaining (%) 93 | 100 87 . . Volleys Fired 62 | . 23 15 24 Largest 2 | . 2 2 2 Hottest 112 | . 40 40 112 Shots Fired 121 | . 46 30 45 Gun 108 | . 46 30 32 Cannon 12 | . . . 12 Launcher . | . . . . Special 1 | . . . 1 Kinetic 94 | . 46 30 18 Thermal 15 | . . . 15 Explosive . | . . . . Electromagnetic 12 | . . . 12 Robot Hit Streak 7 | . 7 3 6 Robot Miss Streak 8 | . 2 4 8 Penetration Max . | . . . . Secondary Targets 1 | . . . 1 Max Gunslinging Chain 1 | . . . 1 Shots Hit Robots 54 | . 20 14 20 Core Hits 21 | . 6 5 10 Critical Kills . | . . . . Critical Parts Destroyed . | . . . . Critical Strikes 1 | . . . 1 Burn 1 | . . . 1 Melee Attacks . | . . . . Impact . | . . . . Slashing . | . . . . Piercing . | . . . . Sneak Attacks . | . . . . Combat Hostiles . | . . . . Follow-up Attacks . | . . . . Damage Inflicted 722 | . 240 180 302 Guns 620 | . 234 180 206 Cannons 96 | . . . 96 Explosions . | . . . . Melee . | . . . . Ramming 6 | . 6 . . Kinetic 490 | . 234 180 76 Thermal 130 | . . . 130 Explosive . | . . . . Electromagnetic 96 | . . . 96 Impact . | . . . . Slashing . | . . . . Piercing . | . . . . Highest Corruption . | . . . . Average Corruption . | . . . . Corruption Purged . | . . . . Corruption Blocked . | . . . . Overload Shots . | . . . . Overflow Damage . | . . . . Projectiles . | . . . . Explosions . | . . . . Melee . | . . . . Knockbacks . | . . . . Impact . | . . . . Kinetic . | . . . . Secondary . | . . . . Self-Inflicted Damage 3 | . 3 . . Shots . | . . . . Rammed 1 | . 1 . . Targets Rammed 1 | . 1 . . Kicked . | . . . . Crushed . | . . . . Highest Temperature 251 | . 15 9 251 Average Temperature 82 | . 5 9 99 Received Heat Transfer 260 | . 78 42 140 Siege Activations . | . . . . Martial Activations . | . . . . Shielding Activations . | . . . . Robots Disrupted . | . . . . Combat Hostiles . | . . . . Robots Corrupted . | . . . . Combat Hostiles . | . . . . Parts Fried . | . . . . Impact Corruptions . | . . . . Robots Melted . | . . . . Combat Hostiles . | . . . . Parts Melted . | . . . . Heat Transferred 407 | . . . 407 Parts Sabotaged . | . . . . Parts Stolen . | . . . . Parts Stripped . | . . . . Power Chain Reactions . | . . . . Alert | -11 -10 -9 -9 ------- Run | Yrd Mat Mat Min Maximum Alert Level . | . . . . Low Security (%) 100 | 100 100 100 100 Level 1 . | . . . . Level 2 . | . . . . Level 3 . | . . . . Level 4 . | . . . . Level 5 . | . . . . High Security . | . . . . Max Security . | . . . . Peak Influence 69 | . 41 45 69 Initial 9 | . . . 9 Average 13 | . 12 11 20 Influence Increases 218 | . 66 82 70 Destroy 0b10 Robot/C 140 | . 40 40 60 Destroy 0b10 Robot/NC 15 | . 10 5 . Destroy Leader 32 | . . 22 10 Disable Machine 15 | . . 15 . Destroy Structure 1 | . 1 . . Lose Combat Pursuer 15 | . 15 . . Influence Decreases 218 | . 65 58 95 Entered New Map 17 | . . 1 16 Time Decay 191 | . 65 47 79 Lost Part 10 | . . 10 . Squads Dispatched 4 | . . 4 . Investigation 1 | . . 1 . Extermination . | . . . . Reinforcement 3 | . . 3 . Assault . | . . . . Garrison . | . . . . Intercept . | . . . . Searches Triggered . | . . . . Construction Impeded . | . . . . Haulers Reinforced . | . . . . Active Scanning Responses . | . . . . Cargo Convoy Interrupts . | . . . . Stealth | -11 -10 -9 -9 --------- Run | Yrd Mat Mat Min Distress Signals 1 | . . 1 . Communications Jammed . | . . . . Distress Signals . | . . . . Times Spotted 27 | . 4 10 13 Peak Tracking Total 6 | . 3 5 6 Tactical Retreats 3 | . 1 . 2 Traps | -11 -10 -9 -9 ------- Run | Yrd Mat Mat Min Traps Triggered 2 | . . 2 . Indirectly . | . . . . Trap Hack Attempts . | . . . . Triggered . | . . . . Disarmed . | . . . . Reprogrammed . | . . . . Reused . | . . . . Traps Extracted . | . . . . Installed . | . . . . Triggered . | . . . . Machines | -11 -10 -9 -9 ---------- Run | Yrd Mat Mat Min Machines Disabled 1 | . . 1 . Max in Single Turn 1 | . . 1 . Machines Repaired . | . . . . Machines Dismantled . | . . . . Machines Sabotaged . | . . . . Overloaded Fab Kills . | . . . . Hacking | -11 -10 -9 -9 --------- Run | Yrd Mat Mat Min Machines Accessed . | . . . . Terminals . | . . . . Fabricators . | . . . . Repair Stations . | . . . . Recycling Units . | . . . . Scanalyzers . | . . . . Garrison Access . | . . . . Total Hacks . | . . . . Successful . | . . . . Failed . | . . . . Catastrophic . | . . . . Database Lockouts . | . . . . Manual . | . . . . Terminals . | . . . . Fabricators . | . . . . Repair Stations . | . . . . Recycling Units . | . . . . Scanalyzers . | . . . . Garrison Access . | . . . . Terminal Hacks . | . . . . Fabricator Hacks . | . . . . Repair Station Hacks . | . . . . Recycling Unit Hacks . | . . . . Scanalyzer . | . . . . Garrison Access Hacks . | . . . . Unauthorized Hacks . | . . . . Terminals . | . . . . Fabricators . | . . . . Repair Stations . | . . . . Recycling Units . | . . . . Scanalyzers . | . . . . Garrison Access . | . . . . Data Cores Recovered . | . . . . Used . | . . . . Hacking Detections . | . . . . Full Trace Events . | . . . . Feedback Events . | . . . . Feedback Blocked . | . . . . Robot Schematics Acquired . | . . . . Robots Built . | . . . . Authchips . | . . . . Time . | . . . . Total Robot Build Rating . | . . . . Part Schematics Acquired . | . . . . Parts Built . | . . . . Authchips . | . . . . Time . | . . . . Total Part Build Rating . | . . . . Part Studies Acquired . | . . . . Parts Repaired . | . . . . Time . | . . . . Parts Recycled . | . . . . Recycled Matter . | . . . . Retrieved Matter . | . . . . Retrieved Components . | . . . . Parts Scanalyzed . | . . . . Part Schematics Acquired . | . . . . Parts Damaged . | . . . . Bothacking | -11 -10 -9 -9 ------------ Run | Yrd Mat Mat Min Used RIF Installer . | . . . . Robots Hacked . | . . . . Non-combat . | . . . . Combat . | . . . . Robot Hacks Applied . | . . . . Relay Couplers Released . | . . . . Fabnet Peak Effective % . | . . . . Robots Rewired . | . . . . Allies Hacked . | . . . . Hacks Repelled . | . . . . Allies | -11 -10 -9 -9 -------- Run | Yrd Mat Mat Min Total Allies . | . . . . Largest Group . | . . . . Highest-Rated Group . | . . . . Highest-Rated Ally . | . . . . Total Orders . | . . . . Ally Attacks . | . . . . Total Damage . | . . . . Kills . | . . . . Allies Corrupted . | . . . . Allies Melted . | . . . . Intel | -11 -10 -9 -9 ------- Run | Yrd Mat Mat Min Active Infowar (turns) 604 | . 107 228 269 Terrain 604 | . 107 228 269 Robot Analysis Total . | . . . . Derelict Logs Recovered . | . . . . Drone Launches . | . . . . Drone Recoveries . | . . . . Exploration | -11 -10 -9 -9 ------------- Run | Yrd Mat Mat Min Turns Passed 805 | 72 217 238 278 Spaces Moved 637 | 60 156 199 222 Core 14 | 6 . . 8 Treads 10 | 10 . . . Legs . | . . . . Wheels 608 | 44 156 194 214 Hover . | . . . . Flight 5 | . . 5 . Fastest Speed 50 | 50 80 80 50 Average Speed 85 | 90 81 84 86 Slowest Speed 160 | 160 95 110 95 Overloaded Moves . | . . . . Propulsion Burnouts . | . . . . Robots Hopped . | . . . . Potential Cave-ins . | . . . . Cave-ins Triggered . | . . . . Exploration Rate (%) 27 | 5 38 21 44 Regions Visited 3 Branch Regions 1 Pre-discovered Areas . | . . . . Known Exits Taken . | . . . . Unknown Exits Taken 3 | 1 1 1 . Scrap Searched 2 | . . . 2 Spaces Dug 1 | . . . 1 Terrain Destroyed 1 | . . . 1 Melee . | . . . . Projectile 1 | . . . 1 AOE . | . . . . Terrain Rammed . | . . . . Walls Destroyed . | . . . . Machines Disabled . | . . . . Actions | -11 -10 -9 -9 --------- Run | Yrd Mat Mat Min Total 771 | 78 198 237 258 Wait 12 | 2 10 . . Move 634 | 59 155 198 222 Hop . | . . . . Pick Up 22 | 8 4 8 2 Fast Attach 4 | . . . 4 Attach 13 | 6 1 2 4 Detach . | . . . . Swap 14 | 1 3 9 1 Drop 9 | 2 1 5 1 Fire 62 | . 23 15 24 Melee . | . . . . Ram 1 | . 1 . . Kick . | . . . . Crush . | . . . . Escape Stasis . | . . . . Rewire . | . . . . Trap . | . . . . Miscellaneous . | . . . . Route ------- -11/Scrapyard -10/Materials -9/Materials -9/Mines History --------- Turn | Location | Event 6 | -11/Scrapyard | Discovered new exit (range 15) 73 | -11/Scrapyard | Entered Materials 262 | -10/Materials | Discovered new exit (range 13) 290 | -10/Materials | Entered another Materials area 290 | -9/Materials | Evolved 2 slots: Propulsion x2 311 | -9/Materials | Build established: Mutant 501 | -9/Materials | Discovered new exit (range 15) 528 | -9/Materials | Entered Mines 636 | -9/Mines | Assembled infested the area 729 | -9/Mines | Core integrity fell below 50% 737 | -9/Mines | Lost 7 parts (2p2n2u1w) 805 | -9/Mines | Core integrity fell below 20% 806 | -9/Mines | Destroyed by D-53 Grenadier with Mini Grenade Launcher Last Messages --------------- Imp. Aluminum Leg destroyed. Lgt. Ion Engine destroyed. Wheel destroyed. Lgt. Armor Plating destroyed. as-61126 destroyed. Switching to secondary target: as-11809. Acquired 12 matter. Acquired 20 matter. Acquired Wheel. Destroyed Asb. Hover Unit. as-11809 destroyed. Acquired 10 matter. as-85073 destroyed. Acquired 14 matter. Acquired 8 matter. Assault Rifle destroyed. Wheel destroyed. Terrain Scanner destroyed. Mining Laser destroyed. Beam Rifle destroyed. Map ----- +----------------------------------------------------+ | ## ##??????#??## ##???????????????????????? | | # ###?#??????# """ #???????????????????????? | | # ! ##?#?????## """ ##??????????????????????? | | ?#= ######### """ #??????????????????????? | | ?##![ * #??????????????????????? | | #?# ##??????????????????????? | | ??## ## ## ##???????????????????????? | | ???## ## ## ### ###????????????????????????? | | ??#?######## #?### #??????????????????????????? | | ######??#### #???### #??????????????????????????? | | #??# | #####?? #??????????????????????????? | | #??# #### ##?? #??????????????????????????? | | ### ##?#!### ### #??????????????????????????? | | #?# #??# ## #??????????????????????????? | | ?## #?## #???# #??????????????????????????? | | ### ### ##???# #??????????????????????????? | | # ###### #??????????????????????????? | | | #??????????????????????????? | | ### ### ###????????????????????????? | | ###### ### u ##???????????????????????? | | ######????# ## #???????????????????????? | | ##????????## ## < #???????????????????????? | | ###?#??#?## % ###?????????????????????? | | ## ###?????# #?????????????????????? | | ?## ###???# ###???????????????????? | | #?## #????# @ #???????????????????? | | ???## #????# dd #???????????????????? | | ??#?## ##????# # ??????????????? | | ?????####?????## ###?#######?????????????? | | ???????????????## ###???????????????????????? | | ????????????????#######??????????????????????????? | | | | | | | | | | | | | | | | | | | | | | | | | | | | | | | | | | | | | | | +----------------------------------------------------+ Best States ------------- Heat Dissipation 28 Energy Generation 10 Energy Capacity 250 Matter Stores 263 Matter Capacity 300 Sight Range 16 Terrain Scan Range 14 Terrain Scan Density 10 Armor Coverage 300 Evasion (%) 50 Recoil Reduction 1 Item Schematics ----------------- None Robot Schematics ------------------ None Fabricated ------------ Nothing Repaired ---------- Nothing Studied --------- None Alien Tech Used ----------------- None Achievements -------------- None Challenges ------------ None Game ------ Seed HardenedFieldPurifier Manual? 0 Play Time 00:13:57 Cumulative 4.0 hours Start 2026.09.12 @ 20:28:19 End 2026.09.12 @ 20:45:25 Sessions 1 Manual Loads 0 Difficulty Rogue Special Mode None Game No. 7 Rogue 7 Adventurer 0 Explorer 0 Win Type - Total 0 Types 0/0/0/0/0/0/0/0/0/0 Lore% 6 Gallery% 9 Achievement% 8 Wizard Run 0 Options --------- Layout 1 ASCII 0 Keyboard 0 Movement Mouse Keybinds 0 Fullscreen 1 Font 24/Terminus Map View 50x35 Zoom Use 0% Tactical HUD 0 Map Filters NONE Filters NONE Steam 1 RUN: f583783d-6436-4202-bd5c-6be4e31fb0da